[Event "Marmaris Icmeler-IM May 2022"]
[Site "Icmeler"]
[Date "2022.05.09"]
[Round "9.5"]
[White "Nazari, Arad"]
[Black "Odeev, Handszar"]
[Result "1/2-1/2"]
[ECO "B90"]
[WhiteElo "2287"]
[BlackElo "2305"]
[Annotator "TA"]
[PlyCount "21"]
[EventDate "2022.05.05"]
[EventType "schev"]
[EventCountry "TUR"]
[SourceTitle "playchess.com"]
[Source "ChessBase"]
[SourceQuality "1"]
[TimeControl "5400+30"]

{[%evp 20,21,45,0]} 1. e4 {[%emt 0:03:00]} c5 {[%emt 0:04:00]} 2. Nf3 {[%emt 0:00:30]} d6 {[%emt 0:00:30]} 3. d4 {[%emt 0:00:00]} cxd4 {[%emt 0:00:30]} 4. Nxd4 {[%emt 0:00:00]} Nf6 {[%emt 0:00:30]} 5. Nc3 {[%emt 0:00:00]} a6 {[%emt 0:00:30]} 6. Be3 {[%emt 0:00:00]} Ng4 {[%emt 0:00:30]} 7. Bc1 {[%emt 0:00:30] [#]} Nf6 $146 {[%emt 0:00:30]} ({Predecessor:} 7... Nc6 8. Be2 Qb6 9. Bxg4 Qxd4 10. Qe2 Ne5 11. Bxc8 Rxc8 12. O-O e6 13. Rd1 Qc4 14. Qxc4 Rxc4 15. a4 Be7 16. f3 g5 17. Be3 Kd7 {1-0 (63) Dominguez Perez,L (2758)-Duda,J (2738) chess24.com INT 2021}) 8. Be3 {[%emt 0:00:00]} Ng4 {[%emt 0:00:30]} 9. Bc1 {[%emt 0:00:00]} Nf6 {[%emt 0:00:30]} 10. Be3 {[%emt 0:00:30]} Ng4 {[%emt 0:00:00]} 11. Bc1 {[%emt 0:00:30] 11.Nf5 is setting a new trend.} 1/2-1/2

[Event "Marmaris Icmeler-IM May 2022"]
[Site "Icmeler"]
[Date "2022.05.09"]
[Round "10.1"]
[White "Toufighi, Homayoon"]
[Black "Hereklioglu, Sude"]
[Result "1-0"]
[ECO "B22"]
[WhiteElo "2439"]
[BlackElo "1918"]
[Annotator "TA"]
[PlyCount "83"]
[EventDate "2022.05.05"]
[EventType "schev"]
[EventCountry "TUR"]
[SourceTitle "playchess.com"]
[Source "ChessBase"]
[SourceQuality "1"]
[TimeControl "5400+30"]

{[%evp 22,83,33,22,30,27,20,12,9,8,6,7,7,4,10,16,41,6,71,50,58,58,50,52,116,99,124,97,100,88,145,96,118,81,137,148,152,153,140,152,169,181,245,195,297,287,343,337,354,202,222,214,357,324,507,259,522,497,477,485,477,451,399,309]} 1. e4 {[%emt 0:05:00]} c5 {[%emt 0:04:00]} 2. Nf3 {[%emt 0:00:30]} e6 {[%emt 0:00:30]} 3. c3 {[%emt 0:00:00]} d5 {[%emt 0:00:30]} 4. exd5 {[%emt 0:00:00]} Qxd5 {[%emt 0:00:30]} 5. d4 {[%emt 0:00:00]} cxd4 {[%emt 0:00:30]} 6. cxd4 {[%emt 0:00:00]} Nf6 {[%emt 0:00:30]} 7. Nc3 {[%emt 0:00:30]} Qd6 {[%emt 0:00:30]} 8. Bd3 {[%emt 0:00:00]} Be7 {[%emt 0:01:30]} 9. O-O {[%emt 0:00:00]} O-O {[%emt 0:00:30]} 10. Be3 {[%emt 0:00:30]} Nc6 {[%emt 0:00:30]} 11. a3 {[%emt 0:00:30]} a6 {[%emt 0:01:30]} 12. Rc1 {[%emt 0:00:00]} b5 {[%emt 0:01:30] B22: Sicilian: 2 c3.} 13. Ne4 {[%emt 0:00:00]} Nxe4 {[%emt 0:00:30]} 14. Bxe4 {[%emt 0:00:30]} Bb7 {[%emt 0:00:30] The position is equal.} 15. Ne5 {[%emt 0:21:30]} Rac8 {[%emt 0:04:30]} 16. Bf4 {[%emt 0:03:30]} Nxe5 {[%emt 0:08:30]} 17. Rxc8 {[%emt 0:04:30]} Bxc8 {[%emt 0:00:00]} 18. Bxe5 $40 {[%emt 0:03:30][%mdl 128] [#] White mounts an attack.} Qb6 $146 {[%emt 0:01:00]} ({Predecessor:} 18... Qd8 19. Qd3 h6 20. Qg3 Bf6 21. Rc1 Bxe5 22. Qxe5 Qg5 23. f4 Qxe5 24. dxe5 g5 {1-0 (38) Bucher,G (2114)-Healy,J (1889) Struga 2021}) 19. Qc2 {[%emt 0:03:30]} f5 {[%emt 0:02:30]} (19... h6 $11 {keeps the balance.}) 20. Bc6 {[%emt 0:00:30] White is more active.} Bb7 {[%emt 0:03:30]} 21. Bxb7 {[%emt 0:06:30]} Qxb7 {[%emt 0:00:00]} 22. Rc1 {[%emt 0:00:00]} Qd5 {[%emt 0:08:00] White now steadily converts the win.} (22... Rd8 $14) 23. Qc6 $16 {[%emt 0:00:00]} Bf6 {[%emt 0:04:30]} 24. Qxd5 {[%emt 0:00:30]} (24. Qxa6 $6 Bxe5 25. dxe5 Qxe5 $11) 24... exd5 {[%emt 0:00:00][%mdl 4096] Endgame KRB-KRB} 25. Rc6 {[%emt 0:01:30]} Kf7 {[%emt 0:04:00]} (25... f4 $142) 26. f4 {[%emt 0:05:30]} (26. Rxa6 Rc8 27. g3 Rc1+ 28. Kg2 Bxe5 29. dxe5 Rc2 $16) ({White should try} 26. Bxf6 gxf6 27. Rxa6) 26... Ra8 {[%emt 0:02:30]} 27. Kf2 {[%emt 0:03:30]} a5 {[%emt 0:00:30]} (27... Be7 $142) 28. Rc5 {[%emt 0:00:30][%csl LRb5,LRd5]} b4 {[%emt 0:00:30] [#]} 29. a4 $1 {[%emt 0:01:30]} (29. Rxd5 bxa3 30. bxa3 a4 $16) 29... Ke6 {[%emt 0:01:30]} 30. Rc6+ {[%emt 0:00:00]} Ke7 {[%emt 0:00:30]} 31. Ke3 {[%emt 0:00:00]} h6 {[%emt 0:00:30]} (31... h5 {was worth a try.} 32. Kd3 b3) 32. h3 {[%emt 0:00:30]} Kf7 {[%emt 0:01:30]} (32... Bxe5 $142 33. dxe5 (33. fxe5 g5 $18) 33... g5) 33. Rd6 $18 {[%emt 0:01:30]} Rc8 {[%emt 0:00:30]} 34. Kd3 {[%emt 0:01:30] Inhibits Rc2.} ({Not} 34. Rxd5 Rc2 35. g4 (35. Rxa5 Rxb2 36. Ra7+ Kg6 $18) 35... fxg4 36. hxg4 Rxb2 37. Rxa5 Rg2 $18) 34... b3 {[%emt 0:02:30]} 35. Rd7+ {[%emt 0:00:30]} (35. Rxd5 $142 Rc2 36. Rxa5) 35... Ke6 {[%emt 0:01:30] [#]} 36. Rc7 {[%emt 0:00:30]} Rxc7 {[%emt 0:01:30]} (36... Ra8 $142 37. Rc6+ Kf7 38. Bxf6 gxf6) 37. Bxc7 {[%emt 0:00:00] KB-KB} g5 {[%emt 0:00:30]} (37... Be7 $142 38. Bxa5 Kd7) 38. Bxa5 {[%emt 0:01:00]} gxf4 $2 {[%emt 0:00:30]} (38... g4 {is a better defense.} 39. Bc7 gxh3 40. gxh3 Be7) 39. Bc7 {[%emt 0:00:30]} Bg5 {[%emt 0:00:30]} 40. Kc3 {[%emt 0:00:00]} Kd7 {[%emt 0:01:30]} 41. Be5 {[%emt 0:00:00]} Kc6 {[%emt 0:00:00]} 42. Kxb3 {[%emt 0:00:30] Weighted Error Value: White=0.27 (precise) /Black=0.39} 1-0

[Event "Marmaris Icmeler-IM May 2022"]
[Site "Icmeler"]
[Date "2022.05.09"]
[Round "10.2"]
[White "Huseyinoglu, Alihan"]
[Black "Ince, Taylan Ruzgar"]
[Result "1-0"]
[ECO "D97"]
[WhiteElo "2278"]
[BlackElo "2018"]
[Annotator "TA"]
[PlyCount "61"]
[EventDate "2022.05.05"]
[EventType "schev"]
[EventCountry "TUR"]
[SourceTitle "playchess.com"]
[Source "ChessBase"]
[SourceQuality "1"]
[TimeControl "5400+30"]

{[%evp 20,61,0,0,75,62,99,104,106,117,216,198,214,210,218,215,222,194,204,199,311,311,346,339,737,593,552,334,470,472,470,461,5293,5414,5417,5414,5385,5243,1828,1822,1470,1351,1130,1134]} 1. d4 {[%emt 0:02:00]} Nf6 {[%emt 0:01:00]} 2. c4 {[%emt 0:00:30]} g6 {[%emt 0:00:00]} 3. Nc3 {[%emt 0:00:00]} d5 {[%emt 0:00:00]} 4. Nf3 {[%emt 0:00:00]} Bg7 {[%emt 0:00:30]} 5. Qb3 {[%emt 0:01:30]} dxc4 {[%emt 0:00:00]} 6. Qxc4 {[%emt 0:00:30]} O-O {[%emt 0:00:00]} 7. e4 {[%emt 0:00:30]} a6 {[%emt 0:00:30]} 8. e5 {[%emt 0:00:30]} b5 {[%emt 0:00:30]} 9. Qb3 {[%emt 0:00:30]} Nfd7 {[%emt 0:00:00]} 10. e6 {[%emt 0:00:30]} fxe6 {[%emt 0:00:00]} 11. Be3 {[%emt 0:00:00] 11.Qxe6+ is the fancy move.} Nb6 {[%emt 0:07:30] D97: Grünfeld: Russian System: 7 e4, replies other than 7...Bg4.} (11... Nf6 $11 {remains equal.}) 12. h4 $16 {[%emt 0:02:00][%cal Bh2h4,Bh4h5][%mdl 32]} Nc6 {[%emt 0:05:30]} 13. h5 {[%emt 0:19:30]} b4 {[%emt 0:19:30] [#] White is better.} (13... Bxd4 $2 14. Rd1 Na5 15. Qb4 $18 (15. Rxd4 Nxb3 16. Rxd8 Rxd8 $18)) 14. Ne2 $146 {[%emt 0:10:30] aiming for hxg6.} ({Predecessor:} 14. Ne4 Qd5 15. Qc2 e5 16. h6 Bh8 17. dxe5 Nxe5 18. Rd1 Nxf3+ 19. gxf3 Qf5 20. Qxc7 Qxf3 21. Rh4 Bg4 22. Bc4+ e6 23. Rxg4 Qxg4 24. Ng5 {1-0 (24) Lugovoi,A (2509)-Holmsten,A (2380) Jyvaskyla 1999}) 14... Nd5 {[%emt 0:17:30]} (14... Rf6 $16) 15. hxg6 $18 {[%emt 0:01:30]} hxg6 {[%emt 0:00:30]} 16. Qc2 {[%emt 0:08:30][%csl LRc6,LRg6]} Qe8 {[%emt 0:00:30]} 17. Qe4 {[%emt 0:01:30]} Rf5 {[%emt 0:17:30]} 18. Ng3 {[%emt 0:04:30]} (18. Qh4 $2 Rh5 19. Qe4 Rxh1 $19) 18... Qf7 {[%emt 0:00:30]} (18... Nxe3 $2 19. fxe3 Bd7 20. Bc4 $18) 19. Bc4 {[%emt 0:13:30]} ({Resist} 19. Nxf5 gxf5 20. Qc2 (20. Qh4 f4 $16) 20... Bb7) (19. Qh4 Rxf3 20. gxf3 Bf6) 19... Bb7 {[%emt 0:06:30]} (19... Na5 {was necessary.}) 20. Nxf5 {[%emt 0:02:30]} ({Don't do} 20. Qh4 $6 Bf6 21. Nxf5 Bxh4 22. Nh6+ Kg7 23. Bxd5 (23. Nxf7 Nxe3 24. Bxe6 Nd8 $14) 23... Qe8 $18) 20... gxf5 {[%emt 0:01:30]} 21. Qh4 {[%emt 0:01:30] Really sharp!} f4 $2 {[%emt 0:00:30]} (21... Kf8 22. Rc1 Nxe3 23. fxe3 Nd8) 22. Bxd5 {[%emt 0:04:30]} exd5 {[%emt 0:00:30]} 23. Bxf4 {[%emt 0:01:30]} Nxd4 {[%emt 0:00:30]} (23... Qf5 {was called for.} 24. Qg3 Kf7) 24. Nxd4 {[%emt 0:00:30] White is clearly winning.} Bxd4 {[%emt 0:00:30]} 25. O-O-O {[%emt 0:01:30]} Qg7 {[%emt 0:02:20] [#]} (25... Bf6 $142) 26. Rxd4 $1 {[%emt 0:00:30][%mdl 512]} Qxd4 {[%emt 0:01:00]} 27. Qg4+ {[%emt 0:01:30]} Kf7 {[%emt 0:00:40]} 28. Rh7+ {[%emt 0:00:00]} Ke8 {[%emt 0:00:12] [#]} 29. Rxe7+ $1 {[%emt 0:00:00][%mdl 576] Decoy} Kxe7 {[%emt 0:00:39]} 30. Bg5+ {[%emt 0:00:30][%mdl 64] Discovered Attack} Qf6 {[%emt 0:00:03]} 31. Qxb4+ {[%emt 0:00:30] Black did not feel at home in the position after the opening.  Weighted Error Value: White=0.24 (precise) /Black=0.56} 1-0

[Event "Marmaris Icmeler-IM May 2022"]
[Site "Icmeler"]
[Date "2022.05.09"]
[Round "10.3"]
[White "Darban, Morteza"]
[Black "Taspinar, Yanki"]
[Result "1/2-1/2"]
[ECO "C44"]
[WhiteElo "2279"]
[BlackElo "2176"]
[Annotator "TA"]
[PlyCount "63"]
[EventDate "2022.05.05"]
[EventType "schev"]
[EventCountry "TUR"]
[SourceTitle "playchess.com"]
[Source "ChessBase"]
[SourceQuality "1"]
[TimeControl "5400+30"]

{[%evp 9,63,-7,0,-22,0,-14,7,3,24,0,2,7,27,17,36,25,35,-19,-17,-18,-10,-9,-8,-10,-12,-10,-13,-15,-9,-11,0,0,0,0,0,0,0,0,0,0,0,0,0,0,0,0,0,0,0,0,0,0,0,0,0,0]} 1. e4 {[%emt 0:10:00]} e5 {[%emt 0:01:00]} 2. Nf3 {[%emt 0:00:30]} Nc6 {[%emt 0:00:30]} 3. Be2 {[%emt 0:01:30]} Nf6 {[%emt 0:00:30]} 4. d3 {[%emt 0:00:30]} g6 {[%emt 0:02:30]} 5. c3 {[%emt 0:12:30]} Bg7 {[%emt 0:00:00]} 6. O-O {[%emt 0:03:30] C44: Ponziani Opening and Scotch Gambit.} O-O {[%emt 0:00:00]} 7. Nbd2 {[%emt 0:00:30]} d5 {[%emt 0:05:30]} 8. b4 {[%emt 0:03:30]} a6 {[%emt 0:00:30]} 9. Bb2 {[%emt 0:01:30]} Bg4 {[%emt 0:16:30] [#]} 10. Re1 $146 {[%emt 0:04:30]} ({Predecessor:} 10. a4 Re8 11. Re1 Qd6 12. Qc2 Rad8 13. b5 Na5 14. c4 d4 15. c5 Qd7 16. Reb1 {½-½ (61) Hamann,H (2389)-Rodin,E (2341) ICCF corr 1999}) 10... h6 {[%emt 0:08:30]} 11. a3 {[%emt 0:03:30]} Qe7 {[%emt 0:08:30]} 12. exd5 {[%emt 0:07:30]} (12. h3 {feels hotter.} Be6 13. exd5 Nxd5 14. a4) 12... Nxd5 {[%emt 0:00:30]} 13. Nxe5 {[%emt 0:00:30]} Qxe5 $11 {[%emt 0:00:30] The position is equal.} ({Don't play} 13... Bxe2 14. Nxc6 Qf6 15. Ne7+ (15. Qxe2 Qxc6 16. Rac1 Rfe8 $11) 15... Qxe7 16. Rxe2 $14) 14. Bxg4 {[%emt 0:00:30]} Nxc3 {[%emt 0:00:30]} 15. Qb3 {[%emt 0:05:30] [#]} ({Wrong is} 15. Rxe5 $2 Nxd1 16. Bxd1 Bxe5 17. Bxe5 Nxe5 $19) 15... Ne2+ $1 {[%emt 0:02:30]} 16. Bxe2 {[%emt 0:00:30]} Qxb2 {[%emt 0:00:30]} 17. Qxb2 {[%emt 0:00:30]} Bxb2 {[%emt 0:00:30]} 18. Ra2 {[%emt 0:00:30]} Bc3 {[%emt 0:03:30]} 19. Bf3 {[%emt 0:05:30]} Rae8 {[%emt 0:11:30]} 20. Rxe8 {[%emt 0:04:30]} Rxe8 {[%emt 0:00:30]} 21. Bxc6 {[%emt 0:00:30]} Re1+ {[%emt 0:00:30]} 22. Nf1 {[%emt 0:00:30]} bxc6 {[%emt 0:00:00][%mdl 4096] Endgame KRB-KRN} 23. Rc2 {[%emt 0:00:30]} Bd4 {[%emt 0:00:00][%cal Oc6c5]} 24. Rxc6 {[%emt 0:04:30]} Re2 {[%emt 0:00:30]} 25. Ne3 $1 {[%emt 0:00:30]} Re1+ {[%emt 0:00:30]} 26. Nf1 {[%emt 0:00:30]} Re2 {[%emt 0:00:00]} 27. Ne3 $1 {[%emt 0:00:30]} Re1+ $1 {[%emt 0:00:00]} 28. Nf1 {[%emt 0:00:00]} Re2 {[%emt 0:00:00]} 29. Ne3 $1 {[%emt 0:00:00]} Re1+ $1 {[%emt 0:00:00]} 30. Nf1 {[%emt 0:00:30]} Re2 {[%emt 0:00:30]} 31. Ne3 $1 {[%emt 0:00:00]} Re1+ $1 {[%emt 0:00:00]} 32. Nf1 {[%emt 0:00:00] Weighted Error Value: White=0.09 (flawless) /Black=0.07 (flawless)} 1/2-1/2

[Event "Marmaris Icmeler-IM May 2022"]
[Site "Icmeler"]
[Date "2022.05.09"]
[Round "10.4"]
[White "Odeev, Handszar"]
[Black "Kilic, Eray"]
[Result "1/2-1/2"]
[ECO "B20"]
[WhiteElo "2305"]
[BlackElo "2192"]
[Annotator "TA"]
[PlyCount "58"]
[EventDate "2022.05.05"]
[EventType "schev"]
[EventCountry "TUR"]
[SourceTitle "playchess.com"]
[Source "ChessBase"]
[SourceQuality "1"]
[TimeControl "5400+30"]

{[%evp 9,58,27,30,30,77,79,97,91,87,74,106,63,93,40,40,52,83,84,91,91,115,105,106,118,131,84,85,82,75,66,89,0,60,58,65,0,87,0,0,0,0,0,0,-6,0,0,0,0,0,0,0]} 1. e4 {[%emt 0:13:00]} c5 {[%emt 0:01:00]} 2. b3 {[%emt 0:01:30]} Nc6 {[%emt 0:00:30]} 3. Bb2 {[%emt 0:00:30]} d5 {[%emt 0:02:30]} 4. exd5 {[%emt 0:06:30]} Qxd5 {[%emt 0:00:30]} 5. Nc3 {[%emt 0:02:30]} Qd8 {[%emt 0:00:30]} 6. Bb5 {[%emt 0:02:30] B20: Sicilian: Unusual White 2nd moves.} Nf6 {[%emt 0:01:30]} (6... Bd7 $11) 7. Bxc6+ $16 {[%emt 0:03:30]} bxc6 {[%emt 0:00:30]} 8. Qf3 {[%emt 0:00:00] White is better.} Qc7 {[%emt 0:04:30] [#]} 9. Ne4 $146 {[%emt 0:09:00][%cal Bc3e4,Be4c5,Bc5a4][%mdl 32]} ({Predecessor:} 9. Na4 Bg4 10. Qg3 Qd6 11. Qxd6 exd6 12. Bxf6 gxf6 13. f3 Be6 14. Ne2 Bh6 15. Ng3 {½-½ (64) Zugaj,Z-Saradjen,J (2165) Portoroz 1996}) 9... Be6 {[%emt 0:02:30]} 10. c4 {[%emt 0:07:30] White is more active.} ({But not} 10. Nxc5 Bd5 11. Qh3 e5 $14) 10... O-O-O {[%emt 0:03:30]} 11. Ne2 {[%emt 0:16:30]} (11. Nxc5 $16 Bg4 12. Qe3) 11... Bg4 $14 {[%emt 0:04:30]} 12. Qe3 {[%emt 0:00:00]} e5 {[%emt 0:00:30]} 13. f3 {[%emt 0:11:00] Black must now prevent Nxf6.} ({Don't blunder} 13. Nxc5 $2 Bxc5 14. Qxc5 Rxd2 $3 $19 {[%mdl 512]}) 13... Bf5 {[%emt 0:02:30]} 14. Nxc5 {[%emt 0:05:17]} Qa5 {[%emt 0:06:30] [#]} 15. Na4 {[%emt 0:00:02] Pair of Knights!} Bb4 {[%emt 0:08:30][%cal Rb4d2] [#]} 16. Bc3 {[%emt 0:01:08]} Rd3 {[%emt 0:00:30]} 17. Qg5 {[%emt 0:00:07]} (17. Bxb4 $142 Qxb4 18. Qc5 (18. Qxa7 Qxd2+ 19. Kf2 e4 $16) 18... Qxc5 19. Nxc5) 17... Bg6 $16 {[%emt 0:00:30]} 18. O-O {[%emt 0:01:13]} h6 {[%emt 0:04:30]} 19. Qh4 {[%emt 0:02:14]} Rhd8 {[%emt 0:02:30]} 20. Rae1 {[%emt 0:07:23]} ({White should try} 20. Ng3 $16) 20... Bxc3 {[%emt 0:01:30]} (20... Rxd2 $11 21. Bxd2 Bxd2) 21. dxc3 $14 {[%emt 0:03:57]} Rd2 $1 {[%emt 0:00:30]} 22. Nc1 {[%emt 0:00:13]} (22. f4 $14) 22... e4 {[%emt 0:01:30]} (22... Nh5 $11) 23. fxe4 {[%emt 0:01:14]} ({White should play} 23. f4 $16) 23... Qe5 $11 {[%emt 0:00:30][%cal Rg6e4] The position is equal.} 24. Qf4 {[%emt 0:00:27]} Qxf4 {[%emt 0:01:30]} 25. Rxf4 {[%emt 0:00:06]} Bxe4 {[%emt 0:02:30]} 26. Rf2 {[%emt 0:03:34]} Rd1 {[%emt 0:09:30]} 27. Rxd1 {[%emt 0:01:43]} Rxd1+ {[%emt 0:00:30]} 28. Rf1 {[%emt 0:00:00]} Rd2 {[%emt 0:00:30]} 29. Rf2 {[%emt 0:00:08]} Rd1+ {[%emt 0:00:00] Weighted Error Value: White=0.16 (very precise) /Black=0.18 (very precise)} 1/2-1/2

[Event "Marmaris Icmeler-IM May 2022"]
[Site "Icmeler"]
[Date "2022.05.09"]
[Round "10.5"]
[White "Sevdimaliyev, Urfan"]
[Black "Nazari, Arad"]
[Result "0-1"]
[ECO "A30"]
[WhiteElo "2331"]
[BlackElo "2287"]
[Annotator "TA"]
[PlyCount "48"]
[EventDate "2022.05.05"]
[EventType "schev"]
[EventCountry "TUR"]
[SourceTitle "playchess.com"]
[Source "ChessBase"]
[SourceQuality "1"]
[TimeControl "5400+30"]

{[%evp 18,48,27,0,0,0,0,0,0,0,5,0,-8,-29,-11,-23,-20,-33,49,-66,0,-22,-35,-228,-229,-241,-243,-239,-243,-246,-212,-400,-388]} 1. Nf3 {[%emt 0:07:00]} Nf6 {[%emt 0:01:00]} 2. e3 {[%emt 0:00:30]} g6 {[%emt 0:01:30]} 3. b3 {[%emt 0:01:30]} Bg7 {[%emt 0:00:00]} 4. Bb2 {[%emt 0:00:00]} O-O {[%emt 0:00:00]} 5. Be2 {[%emt 0:00:00]} d5 {[%emt 0:00:00]} 6. O-O {[%emt 0:00:30]} c5 {[%emt 0:00:00]} 7. c4 {[%emt 0:00:30]} Nc6 {[%emt 0:01:30]} 8. cxd5 {[%emt 0:00:30]} Nxd5 {[%emt 0:00:30]} 9. Bxg7 {[%emt 0:00:00]} Kxg7 {[%emt 0:00:00]} 10. Qc1 {[%emt 0:00:00]} (10. Qc2 {is more complex.} Qd6 11. Rc1 b6 12. d4) 10... Qd6 {[%emt 0:01:00] A30: Symmetrical English: Double Fianchetto and Hedgehog.} 11. Nc3 {[%emt 0:00:30]} b6 {[%emt 0:05:30]} 12. Nxd5 {[%emt 0:00:30]} Qxd5 {[%emt 0:00:00] The position is equal.} 13. Qc3+ {[%emt 0:00:30] [#]} f6 $146 {[%emt 0:03:00]} ({Predecessor:} 13... Kg8 14. Rfd1 Bb7 15. Bc4 Qd6 16. d4 cxd4 17. Nxd4 Nxd4 18. Qxd4 Qxd4 19. Rxd4 Rfd8 20. Rad1 {½-½ (20) Vogt,L (2510)-Uhlmann,W (2505) Cottbus 1983}) 14. Rac1 {[%emt 0:00:30]} Bb7 {[%emt 0:00:30]} 15. Rfd1 {[%emt 0:00:30]} Rfd8 {[%emt 0:02:30]} 16. Bc4 {[%emt 0:02:30]} Qh5 {[%emt 0:02:30] ...Nb4 is the strong threat.} 17. d4 {[%emt 0:01:30]} Rac8 {[%emt 0:07:30]} (17... Nb4 $1 $15 18. Rd2 (18. a3 $2 Bxf3 19. gxf3 Na2 $19) 18... Bxf3 19. gxf3 Qxf3) 18. a3 {[%emt 0:09:30]} (18. Qe1 $1 $14) 18... cxd4 {[%emt 0:13:30]} (18... Na5 $1 $15 19. Be2 cxd4) 19. Nxd4 {[%emt 0:00:30]} (19. exd4 $5 {[%cal Rc3e3]} b5 20. Be2 $11 (20. Be6 $2 Nxd4 21. Qe3 Rxc1 $19)) 19... Nxd4 {[%emt 0:02:30]} 20. Rxd4 $2 {[%emt 0:00:30] This move loses the game for White.} (20. exd4 $15 Qg5 21. g3) 20... Rxd4 $19 {[%emt 0:00:30]} 21. Qxd4 {[%emt 0:00:30] [#]} b5 $1 $40 {[%emt 0:08:30][%mdl 128] White is in trouble.} 22. Qd7 {[%emt 0:07:30] [#]} Qd5 $1 {[%emt 0:01:30][%csl Gb7][%cal Rd5g2][%mdl 512]} 23. Qxe7+ {[%emt 0:04:30]} (23. Bxd5 $2 Rxc1#) ({Much weaker is} 23. Qxd5 Bxd5 24. Rc2 bxc4 $19) 23... Kh6 {[%emt 0:00:30][%csl Gb7][%cal Rd5g2] Chess con chili.} 24. e4 $2 {[%emt 0:01:30]} (24. f3 Qe5 25. Qxe5 fxe5 26. Kf2) 24... Qxe4 {[%emt 0:00:30] Weighted Error Value: White=0.55/Black=0.17 (very precise)} (24... Qc6 $2 25. Rc3 bxc4 26. Rh3+ Kg5 27. Rg3+ (27. Qxh7 Kf4 $18) 27... Kh6 28. Rh3+ Kg5 29. Qxh7 $18) 0-1